Workbook

Sheet Info
B5: Dimensionering van diafragma-expansievaten
E6: NBN EN 12828:2013 - Bijlage D
E8: Ontwikkeld in het kader van het Belgische project "KMO - normenantenne"
B10: Bezoek onze website : www.buildwise.be
B12: Buildwise kan niet verantwoordelijk gesteld worden voor de ingevoerde
B13: gegevens, noch voor het verkeerde gebruik van de software
B14: of de verkeerde resultaten die eruit zouden voortkomen.
E21: Dimensionnement des vases d'expansion à diaphragme
E22: NBN EN 12828:2013 - Annexe D
E24: Développé dans le cadre du projet belge "PME - antenne normes"
B26: Visitez notre site web : www.buildwise.be
B28: Buildwise ne peut être tenu responsable des données introduites, de la
B29: mauvaise utilisation du programme ou des erreurs qui en résulteraient.
E31: Versie - Version 7.1 (2022)

Sheet Coef d'expansion (hidden)
A3: Température maximale de service | B3: Coefficient d'expansion e (en %) pour différentes concentrations de produit antigel (ethylène glycol) (en %) | H3: Volume massique eau pure | I3: Pression de vapeur saturante eau pure | J3: Débit de contraction
A4: °C | B4: 0 | C4: 10 | D4: 20 | E4: 30 | F4: 40 | G4: 50 | H4: dm³/kg | I4: bar | J4: l.h/kW
A5: 10 | B5: 0 | C5: 0 | D5: 0 | E5: 0 | F5: 0 | G5: 0 | H5: 1.0003 | I5: 0
A6: 20 | B6: 0.14 | C6: 0.29 | D6: 0.31 | E6: 0.34 | F6: 0.36 | G6: 0.38 | H6: 1.0017 | I6: 0
A7: 30 | B7: 0.4 | C7: 0.63 | D7: 0.67 | E7: 0.72 | F7: 0.77 | G7: 0.81 | H7: 1.0043 | I7: 0
A8: 40 | B8: 0.75 | C8: 1.02 | D8: 1.09 | E8: 1.16 | F8: 1.22 | G8: 1.3 | H8: 1.0078 | I8: 0
A9: 50 | B9: 1.18 | C9: 1.46 | D9: 1.55 | E9: 1.64 | F9: 1.74 | G9: 1.83 | H9: 1.0121 | I9: 0 | J9: 0.39
A10: 60 | B10: 1.68 | C10: 1.96 | D10: 2.07 | E10: 2.18 | F10: 2.3 | G10: 2.42 | H10: 1.0171 | I10: 0 | J10: 0.45
A11: 70 | B11: 2.25 | C11: 2.51 | D11: 2.64 | E11: 2.78 | F11: 2.91 | G11: 3.06 | H11: 1.0228 | I11: 0 | J11: 0.51
A12: 80 | B12: 2.89 | C12: 3.12 | D12: 3.27 | E12: 3.43 | F12: 3.59 | G12: 3.76 | H12: 1.0292 | I12: 0 | J12: 0.57
A13: 90 | B13: 3.57 | C13: 3.79 | D13: 3.96 | E13: 4.14 | F13: 4.32 | G13: 4.51 | H13: 1.0361 | I13: 0 | J13: 0.63
A14: 100 | B14: 4.34 | C14: 4.52 | D14: 4.71 | E14: 4.91 | F14: 5.11 | G14: 5.33 | H14: 1.0437 | I14: 0.01 | J14: 0.69
A15: 110 | B15: 5.15 | C15: 5.31 | D15: 5.52 | E15: 5.74 | F15: 5.97 | G15: 6.21 | H15: 1.0519 | I15: 0.43
A16: 120 | B16: 6.02 | C16: 6.17 | D16: 6.4 | E16: 6.64 | F16: 6.89 | G16: 7.16 | H16: 1.0606 | I16: 0.99
A17: 130 | B17: 6.97 | C17: 7.04 | D17: 7.28 | E17: 7.55 | F17: 7.83 | G17: 8.12 | H17: 1.07 | I17: 1.7
A19: Références: Recknagel - Genie Climatique 2007 - Tableau 1.3.1-6 Ashrae Handbook - Fundamentals (SI) 2009 - Tableau 6 page 31.7
A20: * Valeurs extrapolées
A27: Température maximale de service | B27: Coefficient d'expansion e (en %) pour différentes concentrations de produit antigel (ethylène glycol) (en %) | H27: Volume massique eau pure | I27: Pression de vapeur saturante eau pure
A28: °C | B28: 0 | C28: 10 | D28: 20 | E28: 30 | F28: 40 | G28: 50 | H28: dm³/kg | I28: bar
A29: 10 | B29: 0 | C29: 0 | D29: 0 | E29: 0 | F29: 0 | G29: 0 | H29: 1.0003 | I29: 0
A30: 15 | B30: =0.00034*A30^2+0.01099*A30-0.2014 -> 0.03995 | C30: =0.00028*A30^2+0.01915*A30-0.20713 -> 0.14312 | D30: =0.0003*A30^2+0.0216*A30-0.2336 -> 0.1579 | E30: =0.00028*A30^2+0.02383*A30-0.25217 -> 0.16828 | F30: =0.00028*A30^2+0.02603*A30-0.27336 -> 0.18009 | G30: =0.00028*A30^2+0.0285*A30-0.30098 -> 0.18952 | I30: 0
A31: 20 | B31: 0.14 | C31: 0.29 | D31: 0.31 | E31: 0.34 | F31: 0.36 | G31: 0.38 | H31: 1.0017 | I31: 0
A32: 25 | B32: =0.00034*A32^2+0.01099*A32-0.2014 -> 0.28585 | C32: =0.00028*A32^2+0.01915*A32-0.20713 -> 0.44662 | D32: =0.0003*A32^2+0.0216*A32-0.2336 -> 0.4939 | E32: =0.00028*A32^2+0.02383*A32-0.25217 -> 0.51858 | F32: =0.00028*A32^2+0.02603*A32-0.27336 -> 0.55239 | G32: =0.00028*A32^2+0.0285*A32-0.30098 -> 0.58652 | I32: 0
A33: 30 | B33: 0.4 | C33: 0.63 | D33: 0.67 | E33: 0.72 | F33: 0.77 | G33: 0.81 | H33: 1.0043 | I33: 0
A34: 35 | B34: =0.00034*A34^2+0.01099*A34-0.2014 -> 0.59975 | C34: =0.00028*A34^2+0.01915*A34-0.20713 -> 0.80612 | D34: =0.0003*A34^2+0.0216*A34-0.2336 -> 0.8899 | E34: =0.00028*A34^2+0.02383*A34-0.25217 -> 0.92488 | F34: =0.00028*A34^2+0.02603*A34-0.27336 -> 0.98069 | G34: =0.00028*A34^2+0.0285*A34-0.30098 -> 1.03952 | I34: 0
A35: 40 | B35: 0.75 | C35: 1.02 | D35: 1.09 | E35: 1.16 | F35: 1.22 | G35: 1.3 | H35: 1.0078 | I35: 0
A36: 45 | B36: =0.00034*A36^2+0.01099*A36-0.2014 -> 0.98165 | C36: =0.00028*A36^2+0.01915*A36-0.20713 -> 1.22162 | D36: =0.0003*A36^2+0.0216*A36-0.2336 -> 1.3459 | E36: =0.00028*A36^2+0.02383*A36-0.25217 -> 1.38718 | F36: =0.00028*A36^2+0.02603*A36-0.27336 -> 1.46499 | G36: =0.00028*A36^2+0.0285*A36-0.30098 -> 1.54852 | I36: 0
A37: 50 | B37: 1.18 | C37: 1.46 | D37: 1.55 | E37: 1.64 | F37: 1.74 | G37: 1.83 | H37: 1.0121 | I37: 0
A38: 55 | B38: =0.00034*A38^2+0.01099*A38-0.2014 -> 1.43155 | C38: =0.00028*A38^2+0.01915*A38-0.20713 -> 1.69312 | D38: =0.0003*A38^2+0.0216*A38-0.2336 -> 1.8619 | E38: =0.00028*A38^2+0.02383*A38-0.25217 -> 1.90548 | F38: =0.00028*A38^2+0.02603*A38-0.27336 -> 2.00529 | G38: =0.00028*A38^2+0.0285*A38-0.30098 -> 2.11352 | I38: 0
A39: 60 | B39: 1.68 | C39: 1.96 | D39: 2.07 | E39: 2.18 | F39: 2.3 | G39: 2.42 | H39: 1.0171 | I39: 0
A40: 65 | B40: =0.00034*A40^2+0.01099*A40-0.2014 -> 1.94945 | C40: =0.00028*A40^2+0.01915*A40-0.20713 -> 2.22062 | D40: =0.0003*A40^2+0.0216*A40-0.2336 -> 2.4379 | E40: =0.00028*A40^2+0.02383*A40-0.25217 -> 2.47978 | F40: =0.00028*A40^2+0.02603*A40-0.27336 -> 2.60159 | G40: =0.00028*A40^2+0.0285*A40-0.30098 -> 2.73452 | I40: 0
A41: 70 | B41: 2.25 | C41: 2.51 | D41: 2.64 | E41: 2.78 | F41: 2.91 | G41: 3.06 | H41: 1.0228 | I41: 0
A42: 75 | B42: =0.00034*A42^2+0.01099*A42-0.2014 -> 2.53535 | C42: =0.00028*A42^2+0.01915*A42-0.20713 -> 2.80412 | D42: =0.0003*A42^2+0.0216*A42-0.2336 -> 3.0739 | E42: =0.00028*A42^2+0.02383*A42-0.25217 -> 3.11008 | F42: =0.00028*A42^2+0.02603*A42-0.27336 -> 3.25389 | G42: =0.00028*A42^2+0.0285*A42-0.30098 -> 3.41152 | I42: 0
A43: 80 | B43: 2.89 | C43: 3.12 | D43: 3.27 | E43: 3.43 | F43: 3.59 | G43: 3.76 | H43: 1.0292 | I43: 0
A44: 85 | B44: =0.00034*A44^2+0.01099*A44-0.2014 -> 3.18925 | C44: =0.00028*A44^2+0.01915*A44-0.20713 -> 3.44362 | D44: =0.0003*A44^2+0.0216*A44-0.2336 -> 3.7699 | E44: =0.00028*A44^2+0.02383*A44-0.25217 -> 3.79638 | F44: =0.00028*A44^2+0.02603*A44-0.27336 -> 3.96219 | G44: =0.00028*A44^2+0.0285*A44-0.30098 -> 4.14452 | I44: 0
A45: 90 | B45: 3.57 | C45: 3.79 | D45: 3.96 | E45: 4.14 | F45: 4.32 | G45: 4.51 | H45: 1.0361 | I45: 0
A46: 95 | B46: =0.00034*A46^2+0.01099*A46-0.2014 -> 3.91115 | C46: =0.00028*A46^2+0.01915*A46-0.20713 -> 4.13912 | D46: =0.0003*A46^2+0.0216*A46-0.2336 -> 4.5259 | E46: =0.00028*A46^2+0.02383*A46-0.25217 -> 4.53868 | F46: =0.00028*A46^2+0.02603*A46-0.27336 -> 4.72649 | G46: =0.00028*A46^2+0.0285*A46-0.30098 -> 4.93352 | I46: 0
A47: 100 | B47: 4.34 | C47: 4.52 | D47: 4.71 | E47: 4.91 | F47: 5.11 | G47: 5.33 | H47: 1.0437 | I47: 0.01
A48: 105 | B48: =0.00034*A48^2+0.01099*A48-0.2014 -> 4.70105 | C48: =0.00028*A48^2+0.01915*A48-0.20713 -> 4.89062 | D48: =0.0003*A48^2+0.0216*A48-0.2336 -> 5.3419 | E48: =0.00028*A48^2+0.02383*A48-0.25217 -> 5.33698 | F48: =0.00028*A48^2+0.02603*A48-0.27336 -> 5.54679 | G48: =0.00028*A48^2+0.0285*A48-0.30098 -> 5.77852 | I48: =0.00073*A48^2-0.11045*A48+3.8055 -> 0.2565
A49: 110 | B49: 5.15 | C49: 5.31 | D49: 5.52 | E49: 5.74 | F49: 5.97 | G49: 6.21 | H49: 1.0519 | I49: 0.43
A50: 115 | B50: =0.00034*A50^2+0.01099*A50-0.2014 -> 5.55895 | C50: =0.00028*A50^2+0.01915*A50-0.20713 -> 5.69812 | D50: =0.0003*A50^2+0.0216*A50-0.2336 -> 6.2179 | E50: =0.00028*A50^2+0.02383*A50-0.25217 -> 6.19128 | F50: =0.00028*A50^2+0.02603*A50-0.27336 -> 6.42309 | G50: =0.00028*A50^2+0.0285*A50-0.30098 -> 6.67952 | I50: =0.00073*A50^2-0.11045*A50+3.8055 -> 0.758
A51: 120 | B51: 6.02 | C51: 6.17 | D51: 6.4 | E51: 6.64 | F51: 6.89 | G51: 7.16 | H51: 1.0606 | I51: 0.99
A52: 125 | B52: =0.00034*A52^2+0.01099*A52-0.2014 -> 6.48485 | C52: =0.00028*A52^2+0.01915*A52-0.20713 -> 6.56162 | D52: =0.0003*A52^2+0.0216*A52-0.2336 -> 7.1539 | E52: =0.00028*A52^2+0.02383*A52-0.25217 -> 7.10158 | F52: =0.00028*A52^2+0.02603*A52-0.27336 -> 7.35539 | G52: =0.00028*A52^2+0.0285*A52-0.30098 -> 7.63652 | I52: =0.00073*A52^2-0.11045*A52+3.8055 -> 1.4055
A53: 130 | B53: 6.97 | C53: 7.04 | D53: 7.28 | E53: 7.55 | F53: 7.83 | G53: 8.12 | H53: 1.07 | I53: 1.7

Sheet Calcul - Berekening
D2: Français | H2: =Langage!A13 -> Nouveau calcul
B4: =Langage!A5 -> Tableau de calcul du vase d'expansion fermé à pression variable - NBN EN 12828:2013
B6: =Langage!A6 -> Références
B8: =Langage!A15 -> Dossier | H8: =Langage!A20 -> Date
B9: =Langage!A16 -> Nom
B10: =Langage!A17 -> Adresse
B11: =Langage!A18 -> Commune
B12: =Langage!A19 -> Commentaire
B14: =Langage!A7 -> Données relatives à l'installation | M14: Valeurs de calcul
B16: =Langage!A22 -> 1 Température maximale de service | H16: qmax | J16: °C | M16: =IF(I16="","",I16) ->  | X16: 10 | Y16: 2.5 | AA16: =IF(X16="","",VLOOKUP(X16, 'Coef d''expansion'!A$29:G$53, MATCH(M$17, 'Coef d''expansion'!A$28:G$28, 0), FALSE)) ->  | AB16: =IF(OR(M$36="",M$39="",I$43="",M$20="",AA16=""),"",(M$36+1)*M$39/(M$39-I$43-M$20*(AA16/100))-1) ->  | AC16: =IF(OR(AB16="",X16>I$16),"",AB16) ->  | AD16: =0 -> 0 | AE16: Range
B17: =Langage!A23 -> 2 Concentration en antigel (éthylène glycol) | J17: % | M17: =IF(I17="","",I17) ->  | X17: 15 | Y17: 3 | AA17: =IF(X17="","",VLOOKUP(X17, 'Coef d''expansion'!A$29:G$53, MATCH(M$17, 'Coef d''expansion'!A$28:G$28, 0), FALSE)) ->  | AC17: =IF(OR(AB17="",X17>I$16),"",AB17) ->  | AD17: =IF(T$37="","",IF(T$37<0.05,"",5)) ->  | AE17: =$X$16:INDEX($X$16:$X$40;COUNT($AC$16:$AC$40))
B18: =Langage!A24 -> 3 Coefficient d'expansion (remplissage à 10°C) | H18: e | I18: =IF(OR(M16="",M17=""),"",VLOOKUP(M16, 'Coef d''expansion'!A29:G53, MATCH(M17, 'Coef d''expansion'!A28:G28, 0), FALSE)) ->  | J18: % | X18: 20 | Y18: 3.5 | AA18: =IF(X18="","",VLOOKUP(X18, 'Coef d''expansion'!A$29:G$53, MATCH(M$17, 'Coef d''expansion'!A$28:G$28, 0), FALSE)) ->  | AD18: =IF(T$37="","",IF(T$37<0.1,"",10)) ->  | AE18: =$AC$16:INDEX($AC$16:$AC$40;COUNT($AC$16:$AC$40))
B19: =Langage!A25 -> 4 Pression de vapeur saturante | H19: pv | I19: =IF(M16="","",VLOOKUP(M16, 'Coef d''expansion'!A29:I53, 9, FALSE)) ->  | J19: bar | X19: 25 | Y19: 4 | AA19: =IF(X19="","",VLOOKUP(X19, 'Coef d''expansion'!A$29:G$53, MATCH(M$17, 'Coef d''expansion'!A$28:G$28, 0), FALSE)) ->  | AD19: =IF(T$37="","",IF(T$37<0.15,"",15)) -> 
B20: =Langage!A26 -> 5 Contenance en eau de l'installation | H20: Vsystem | J20: l | M20: =IF(I20="","",ROUND(I20,0)) ->  | X20: 30 | Y20: 4.5 | AA20: =IF(X20="","",VLOOKUP(X20, 'Coef d''expansion'!A$29:G$53, MATCH(M$17, 'Coef d''expansion'!A$28:G$28, 0), FALSE)) ->  | AD20: =IF(T$37="","",IF(T$37<0.2,"",20)) -> 
B21: =Langage!A27 -> 6 Hauteur statique | H21: hst | J21: m | M21: =IF(I21="","",ROUND(I21,1)) ->  | X21: 35 | Y21: 5 | AA21: =IF(X21="","",VLOOKUP(X21, 'Coef d''expansion'!A$29:G$53, MATCH(M$17, 'Coef d''expansion'!A$28:G$28, 0), FALSE)) ->  | AD21: =IF(T$37="","",IF(T$37<0.25,"",25)) -> 
B22: =Langage!A28 -> 7 Différence de hauteur entre le vase et la soupape de sécurité | H22: hXW | J22: m | M22: =IF(I22="","",ROUND(I22,1)) ->  | X22: 40 | Y22: 6 | AA22: =IF(X22="","",VLOOKUP(X22, 'Coef d''expansion'!A$29:G$53, MATCH(M$17, 'Coef d''expansion'!A$28:G$28, 0), FALSE)) ->  | AD22: =IF(T$37="","",IF(T$37<0.3,"",30)) -> 
B23: =Langage!A29 -> 8 Pression de refoulement de la pompe | H23: Dpp | J23: bar | X23: 45 | Y23: 7 | AA23: =IF(X23="","",VLOOKUP(X23, 'Coef d''expansion'!A$29:G$53, MATCH(M$17, 'Coef d''expansion'!A$28:G$28, 0), FALSE)) ->  | AD23: =IF(T$37="","",IF(T$37<0.35,"",35)) -> 
B24: =Langage!A30 -> 9 Pression de tarage de la soupape de sécurité | H24: psv | J24: bar | X24: 50 | Y24: 8 | AA24: =IF(X24="","",VLOOKUP(X24, 'Coef d''expansion'!A$29:G$53, MATCH(M$17, 'Coef d''expansion'!A$28:G$28, 0), FALSE)) ->  | AD24: =IF(T$37="","",IF(T$37<0.4,"",40)) -> 
X25: 55 | AA25: =IF(X25="","",VLOOKUP(X25, 'Coef d''expansion'!A$29:G$53, MATCH(M$17, 'Coef d''expansion'!A$28:G$28, 0), FALSE)) ->  | AD25: =IF(T$37="","",IF(T$37<0.45,"",45)) -> 
B26: =Langage!A8 -> Calculs intermédiaires | M26: =IF(OR(M24="",M22=""),"",ROUND(M24+(M22*0.0981),1)) ->  | O26: Pression au vase correspondant à la pression d'ouverture de la soupape | X26: 60 | AA26: =IF(X26="","",VLOOKUP(X26, 'Coef d''expansion'!A$29:G$53, MATCH(M$17, 'Coef d''expansion'!A$28:G$28, 0), FALSE)) ->  | AD26: =IF(T$37="","",IF(T$37<0.5,"",50)) -> 
X27: 65 | AA27: =IF(X27="","",VLOOKUP(X27, 'Coef d''expansion'!A$29:G$53, MATCH(M$17, 'Coef d''expansion'!A$28:G$28, 0), FALSE)) ->  | AD27: =IF(T$37="","",IF(T$37<0.6,"",60)) -> 
B28: =Langage!A31 -> 10 Volume d'expansion de l'eau | H28: Vex | I28: =IF(OR(I18="",M20=""),"",I18*M20/100) ->  | J28: l | X28: 70 | AA28: =IF(X28="","",VLOOKUP(X28, 'Coef d''expansion'!A$29:G$53, MATCH(M$17, 'Coef d''expansion'!A$28:G$28, 0), FALSE)) ->  | AD28: =IF(T$37="","",IF(T$37<0.7,"",70)) -> 
B29: =Langage!A32 -> 11 Volume de réserve d'eau minimal | H29: Vwr,min | I29: =IF(I28="","",IF(AND(I39<>"",I39<15), I39*0.2, MAX(M20*0.005,3))) ->  | J29: l | X29: 75 | AA29: =IF(X29="","",VLOOKUP(X29, 'Coef d''expansion'!A$29:G$53, MATCH(M$17, 'Coef d''expansion'!A$28:G$28, 0), FALSE)) ->  | AD29: =IF(T$37="","",IF(T$37<0.8,"",80)) -> 
B30: =Langage!A33 -> 12 Pression maximale admissible | H30: pfin,max | I30: =IF(OR(M22="",M23="",M24=""),"",M24+(M22*0.0981)-M23-MAX(0.5,0.1*M24)) ->  | J30: bar | X30: 80 | AA30: =IF(X30="","",VLOOKUP(X30, 'Coef d''expansion'!A$29:G$53, MATCH(M$17, 'Coef d''expansion'!A$28:G$28, 0), FALSE)) ->  | AD30: =IF(T$37="","",IF(T$37<0.9,"",90)) -> 
B31: =Langage!A34 -> 13 Pression statique | H31: pst | I31: =IF(M21="","",M21*0.0981) ->  | J31: bar | M31: =IF(I31="","",ROUND(I31,1)) ->  | X31: 85 | AA31: =IF(X31="","",VLOOKUP(X31, 'Coef d''expansion'!A$29:G$53, MATCH(M$17, 'Coef d''expansion'!A$28:G$28, 0), FALSE)) -> 
X32: 90 | AA32: =IF(X32="","",VLOOKUP(X32, 'Coef d''expansion'!A$29:G$53, MATCH(M$17, 'Coef d''expansion'!A$28:G$28, 0), FALSE)) -> 
B33: =Langage!A9 -> Choix du vase d'expansion | X33: 95 | AA33: =IF(X33="","",VLOOKUP(X33, 'Coef d''expansion'!A$29:G$53, MATCH(M$17, 'Coef d''expansion'!A$28:G$28, 0), FALSE)) -> 
X34: 100 | AA34: =IF(X34="","",VLOOKUP(X34, 'Coef d''expansion'!A$29:G$53, MATCH(M$17, 'Coef d''expansion'!A$28:G$28, 0), FALSE)) -> 
B35: =Langage!A35 -> 14 Pression de gonflage minimale | H35: p0,min | I35: =IF(OR(I31="",I19=""),"",ROUNDUP(P35,1)) ->  | J35: bar | O35: Pression de gonflage minimale | P35: =IF(OR(I31="",I19=""),"",MAX(I31+0.2,I31+I19)) ->  | X35: 105 | AA35: =IF(X35="","",VLOOKUP(X35, 'Coef d''expansion'!A$29:G$53, MATCH(M$17, 'Coef d''expansion'!A$28:G$28, 0), FALSE)) -> 
B36: =Langage!A36 -> 15 Pression de gonflage | E36: p0 ≥ p0,min | H36: p0 | J36: bar | M36: =IF(I36="","",ROUND(I36,1)) ->  | R36: Pression initiale minimale imposée | S36: =IF(OR(I31=""),"",I31+0.5) ->  | T36: =IF(OR(I31="",M37=""),"",(I31+1)/(1-M37)-1) ->  | X36: 110 | AA36: =IF(X36="","",VLOOKUP(X36, 'Coef d''expansion'!A$29:G$53, MATCH(M$17, 'Coef d''expansion'!A$28:G$28, 0), FALSE)) -> 
B37: =Langage!A37 -> 16 Perte de gaz à compenser | E37: =Langage!A51 -> 0% pour NBN EN 12828 | H37: Cla | J37: % | M37: =IF(I37="","",ROUND(I37,0)/100) ->  | R37: Perte de gaz maximale | T37: =IF(OR(M31="",I30=""),"",1-(M31+1)/(I30+0.5)) ->  | X37: 115 | AA37: =IF(X37="","",VLOOKUP(X37, 'Coef d''expansion'!A$29:G$53, MATCH(M$17, 'Coef d''expansion'!A$28:G$28, 0), FALSE)) ->  | AB37: =IF(OR(M$36="",M$39="",I$43="",M$20="",AA37=""),"",(M$36+1)*M$39/(M$39-I$43-M$20*(AA37/100))-1) -> 
B38: =Langage!A38 -> 17 Volume minimal du vase | H38: VN,min | I38: =IF(OR(P38="",S38=""),"",ROUNDUP(MAX(P38,S38),0)) ->  | J38: l | O38: Volume minimal du vase | P38: =IF(OR(I28="",I29="",I30="",M36=""),"",((I30+1)/(I30-M36))*(I28+I29)) ->  | R38: Volume minimal du vase | S38: =IF(OR(I28="",I30="",M36=""),"",(I30+1)/(M36+1)*(S40+1)/(I30-S40)*I28) ->  | X38: 120 | AA38: =IF(X38="","",VLOOKUP(X38, 'Coef d''expansion'!A$29:G$53, MATCH(M$17, 'Coef d''expansion'!A$28:G$28, 0), FALSE)) -> 
B39: =Langage!A39 -> 18 Volume nominal du vase | E39: VN ³ VN,min | H39: VN | J39: l | M39: =IF(I39="","",ROUND(I39,0)) ->  | X39: 125 | AA39: =IF(X39="","",VLOOKUP(X39, 'Coef d''expansion'!A$29:G$53, MATCH(M$17, 'Coef d''expansion'!A$28:G$28, 0), FALSE)) -> 
B40: =Langage!A40 -> 19 Pression initiale minimale | H40: pini,min | I40: =IF(OR(P40="",S40=""),"",ROUND(MAX(P40,S40),1)) ->  | J40: bar | O40: Pression initiale minimale | P40: =IF(OR(I29="",M36="",M39=""),"",(M39*(M36+1)/(M39-I29))-1) ->  | R40: Pression initiale minimale imposée | S40: =MAX(S36,T36) -> 0 | X40: 130 | AA40: =IF(X40="","",VLOOKUP(X40, 'Coef d''expansion'!A$29:G$53, MATCH(M$17, 'Coef d''expansion'!A$28:G$28, 0), FALSE)) -> 
B41: =Langage!A41 -> 20 Pression initiale maximale | E41: =Langage!A50 -> Valeur recommandée | H41: pini,max | I41: =IF(OR(P41=""),"",ROUND(P41,1)) ->  | J41: bar | O41: Pression initiale maximale | P41: =IF(OR(I28="",I30="",M36="",M39=""),"",((I30+1)/(1+I28/M39*(I30+1)/(M36+1))-1)) -> 
B42: =Langage!A42 -> 21 Pression initiale | E42: pini,min ≤ pini ≤ pini,max | H42: pini | J42: bar | M42: =IF(I42="","",ROUND(I42,1)) -> 
B43: =Langage!A43 -> 22 Volume de réserve d'eau réel | H43: Vwr | I43: =IF(OR(M36="",M39="",M42=""),"",IF(M42<M36,0,M39*(M42-M36)/(M42+1))) ->  | J43: l | R43: Volume de réserve max | S43: =((I30+1)-(M36+1))/(I30+1)*M39-I28 -> 
B44: =Langage!A44 -> 23 Pression finale | H44: pfin | I44: =IF(OR(I28="",M36="",M39="",I43=""),"",((M36+1)*M39/(M39-I28-I43))-1) ->  | J44: bar
B45: =Langage!A45 -> 24 Rendement d'utilisation | H45: h | I45: =IF(OR(I28="",M39="",I43=""),"",(I28+I43)/M39) ->  | J45: -
B47: =Langage!A10 -> Pression de remplissage | O47: =CONCATENATE(B47," (bar)") -> Pression de remplissage (bar)
B49: =Langage!A46 -> 25 Température de l'eau de remplissage | H49: qfil | J49: °C | M49: =IF(I49="","",ROUND(I49,0)) ->  | O49: Coefficient d'expansion (remplissage à 10°C) | P49: =IF(M49="","",VLOOKUP(M49, 'Coef d''expansion'!A29:G53, MATCH(M17, 'Coef d''expansion'!A28:G28, 0), FALSE)) -> 
B50: =Langage!A47 -> 26 Pression de remplissage | H50: pfil | I50: =IF(OR(M36="",M39="",I43="",M20="",P49=""),"",(M36+1)*M39/(M39-I43-M20*(P49/100))-1) ->  | J50: bar | O50: =CONCATENATE(Langage!A53," (°C)") -> Température (°C)
B52: =Langage!A11 -> Perte de pression de gonflage
B54: =Langage!A48 -> 27 Perte de gaz admissible | H54: Cla,max | I54: =IF(M42="","",IF(I31="","",(1-(I31+1)/(M42+1))*100)) ->  | J54: % | M54: =IF(I54="","",ROUND(I54,0)) -> 
O84: Performance label | P84: Value | R84: Labels | S84: Values | U84: Labels | V84: Values | X84: Légend
G87: =Langage!A$54 -> Volume du vase | I87: =IF(M$39="","",M$39) ->  | J87: l | O87: danger (pression statique) | P87: =M$31 ->  | R87: 0.5 | S87: =R87 -> 0.5 | U87: Pointer | V87: =I$50 ->  | X87: =CONCATENATE("Min ",M$42," - bar - Max ",M$44) -> Min - bar - Max
G88: =Langage!A$55 -> Pression de gonflage | I88: =IF(M$36="","",M$36) ->  | J88: bar | O88: trop bas | P88: =IF(M$31>=R94,0,IF(M$42>R94,R94-M$31,M$42-M$31)) -> 0 | R88: 1 | S88: =R88-R87 -> 0.5 | U88: Thickness | V88: 0.05
G89: =Langage!A$56 -> Pression initiale à 10°C | I89: =IF(M$42="","",M$42) ->  | J89: bar | O89: normal | P89: =IF(M$42>=R94,0,IF(M$44>R94,R94-M$42,M$44-M$42)) -> 0 | R89: 1.5 | S89: =R89-R88 -> 0.5 | U89: Rest | V89: =(P91+S95)-V87-V88 -> 
G90: =CONCATENATE(Langage!A$57,M$16,"°C") -> Pression finale à °C | I90: =IF(M$44="","",M$44) ->  | J90: bar | O90: trop haut | P90: =IF(M$44>=R94,0,IF(M$26>R94,R94-M$44,M$26-M$44)) -> 0 | R90: 2 | S90: 0.5
O91: danger (soupape de sécurité) | P91: =IF(M$26>=R94,0,R94-M$26) -> 0 | R91: 2.5 | S91: 0.5
O92: Total | P92: =SUM(P87:P91) -> 0 | R92: 3 | S92: 0.5
R93: 3.5 | S93: 0.5
H94: =Langage!A$58 -> Fonctionnement normal | R94: 4 | S94: 0.5
H95: =Langage!A$59 -> Contrôle recommandé | R95: Total | S95: =SUM(S87:S94) -> 4
H96: =Langage!A$60 -> Intervention nécessaire
O99: Performance label | P99: Value | R99: Labels | S99: Values | U99: Labels | V99: Values | X99: Légend
G100: =Langage!A$54 -> Volume du vase | I100: =IF(M$39="","",M$39) ->  | J100: l
G101: =Langage!A$55 -> Pression de gonflage | I101: =IF(M$36="","",M$36) ->  | J101: bar
G102: =Langage!A$56 -> Pression initiale à 10°C | I102: =IF(M$42="","",M$42) ->  | J102: bar | O102: gonflage | P102: =M$31 ->  | R102: 1 | S102: =R102 -> 1 | U102: Pointer | V102: =I$50 ->  | X102: =CONCATENATE("Min ",M$42," - bar - Max ",M$44) -> Min - bar - Max
G103: =CONCATENATE(Langage!A$57,M$16,"°C") -> Pression finale à °C | I103: =IF(M$44="","",M$44) ->  | J103: bar | O103: trop bas | P103: =IF(M$31>=R111,0,IF(M$42>R111,R111-M$31,M$42-M$31)) -> 0 | R103: 2 | S103: =R103-R102 -> 1 | U103: Thickness | V103: 0.05
O104: normal | P104: =IF(M$42>=R111,0,IF(M$44>R111,R111-M$42,M$44-M$42)) -> 0 | R104: 3 | S104: =R104-R103 -> 1 | U104: Rest | V104: =(P106+S112)-V102-V103 -> 
O105: trop haut | P105: =IF(M$44>=R111,0,IF(M$26>R111,R111-M$44,M$26-M$44)) -> 0 | R105: 4 | S105: 1
H106: =Langage!A$58 -> Fonctionnement normal | O106: danger | P106: =IF(M$26>=R111,0,R111-M$26) -> 0 | R106: 5 | S106: 1
H107: =Langage!A$59 -> Contrôle recommandé | O107: Total | P107: =SUM(P102:P106) -> 0 | R107: 6 | S107: 1
H108: =Langage!A$60 -> Intervention nécessaire | R108: 7 | S108: 1
R109: 8 | S109: 1
R110: 9 | S110: 1
R111: 10 | S111: 1
R112: Total | S112: =SUM(S102:S111) -> 10

Sheet Directives
B2: DIRECTIVES POUR L'UTILISATION DE LA FEUILLE DE CALCUL
B4: Affichage des directives à côté du tableau de calcul
B6: Dans le menu Affichage (View), cliquez sur Nouvelle fenêtre (New Window)
B7: Vous obtenez deux fenêtres de cette feuille Excel:
B8: 1. | C8: Une première dans laquelle vous pouvez afficher le tableau de calcul
B9: 2. | C9: Une seconde dans laquelle vous pouvez afficher les directives
B10: Dans le menu Affichage (View), cliquez sur Réorganiser tout (Arrange All)
B11: Dans les options, sélectionnez Mosaïque (Tiled)
B23: Remplissage de la feuille de calcul
B25: Le remplissage de la feuille de calcul se déroule en 3 étapes :
B26: 1. | C26: Introduction des références administratives
B27: 2. | C27: Introduction des données générales de l'installation
B28: 3. | C28: Choix du vase d'expansion et de la pression initiale
B29: Dans la feuille de calcul, seuls les champs en couleur doivent être complétés par l'utilisateur, tous les autres sont protégés et sont automatiquement calculés et complétés.
B31: Les explications détaillées figurent dans la "Méthode de dimensionnement 22"
B33: Données relatives à l’installation
B35: =Langage!B22 -> 1 Température maximale de service
C36: Température maximale à laquelle l’installation ou une partie de l’installation est conçue pour fonctionner. Il est recommandé que cette valeur soit au moins égale à la température maximale à laquelle le générateur de chaleur peut être réglé.
B37: =Langage!B23 -> 2 Concentration en antigel (éthylène glycol)
C38: Concentration en antigel dans l'eau de l'installation (nombre de litres d'antigel pour 100 litre de mélange).
B39: =Langage!B24 -> 3 Coefficient d'expansion (remplissage à 10°C)
C40: Caractérise l’augmentation de volume que subit l’eau lorsqu’elle chauffe. On choisit le coefficient qui correspond à l’augmentation de volume se produisant à la température maximale de service annoncée (par exemple, 80 °C) par rapport à la température de l’eau de remplissage (10 °C).
B41: =Langage!B25 -> 4 Pression de vapeur saturante
C42: Choisir la valeur correspondant à la température maximale de service.
B43: =Langage!B26 -> 5 Contenance en eau de l'installation
C44: Contenance de l’ensemble de l’installation (conduits et appareils), calculée ou estimée sur la base de valeurs indicatives
B45: =Langage!B27 -> 6 Hauteur statique
C46: Différence de hauteur entre le point de raccordement (X) du vase d'expansion et le point le plus haut de l'installation.
B47: =Langage!B28 -> 7 Différence de hauteur entre le vase et la soupape de sécurité
C48: Différence de hauteur entre le point de raccordement (X) du vase d'expansion et le point de raccordement (W) de la soupape de sécurité ; cette différence est positive si le point X est plus bas que le point W et négative dans le cas contraire.
B49: =Langage!B29 -> 8 Pression de refoulement de la pompe
C50: Augmentation de pression qui est exercée par la pompe. A ne compléter que si la pompe est placée entre le vase d'expansion et la soupape de sécurité (sinon = 0 bar).
B51: =Langage!B30 -> 9 Pression de tarage de la soupape de sécurité
C52: Pression, réglée par le fabricant, à laquelle la soupape de sécurité s'ouvre (généralement 3 bars pour les installations résidentielles).
B54: Calcul des valeurs intermédiaires
B56: =Langage!B31 -> 10 Volume d'expansion de l'eau
C57: Augmentation de volume que subit l’eau lorsqu’elle chauffe. Le volume d’expansion est obtenu en multipliant la contenance en eau de l’installation par le coefficient d’expansion.
B58: =Langage!B32 -> 11 Volume de réserve d'eau minimal
C59: Quantité d’eau minimale qui doit demeurer dans le vase d’expansion lorsque l’installation est refroidie.
B60: =Langage!B33 -> 12 Pression maximale admissible
C61: Pression qui ne peut être dépassée au niveau du vase d’expansion sous peine d’actionner la soupape de sécurité de la chaudière.
B62: =Langage!B34 -> 13 Pression statique
C63: Pression exercée par la colonne d’eau au-dessus du vase d’expansion et correspondant à la hauteur statique.
B65: Choix du vase d'expansion et de la pression initiale
B67: =Langage!B35 -> 14 Pression de gonflage minimale
C68: Pression minimale dans le vase lorsque celui-ci ne contient pas encore d’eau.
B69: =Langage!B36 -> 15 Pression de gonflage
C70: Pression dans le vase lorsqu'il ne contient pas encore d'eau (appliquée en usine et à contrôler par l'installateur). Celle-ci doit être choisie par l’installateur et être au moins égale à la pression de gonflage minimale.
B71: =Langage!B37 -> 16 Perte de gaz à compenser
C72: Perte de gaz du vase d'expansion contre laquelle on souhaite se prémunir entre deux contrôles du vase.
B73: =Langage!B38 -> 17 Volume minimal du vase
C74: Volume (ou capacité) minimal(e) théorique du vase d’expansion.
B75: =Langage!B39 -> 18 Volume nominal du vase
C76: Volume (ou capacité) du vase d’expansion. Il doit être choisi par l’installateur et être au moins égal au volume minimal calculé.
B77: =Langage!B40 -> 19 Pression initiale minimale
C78: Pression minimale dans le vase lorsque l’installation est refroidie.
B79: =Langage!B41 -> 20 Pression initiale maximale
C80: Pression maximale dans le vase lorsque l’installation est refroidie.
B81: =Langage!B42 -> 21 Pression initiale
C82: Pression dans le vase au moment du remplissage de l’installation avec de l’eau à 10 °C. Cette pression doit être comprise entre les pressions initiales minimale et maximale. La valeur maximale est recommandée.
B83: =Langage!B43 -> 22 Volume de réserve d'eau réel
C84: Réserve d’eau dans le vase lorsque l’installation est refroidie.
B85: =Langage!B44 -> 23 Pression finale
C86: Pression dans le vase d’expansion lorsque l’installation atteint la température maximale de service.
B87: =Langage!B45 -> 24 Rendement d'utilisation
C88: Rapport entre le volume d’eau présent dans le vase lorsque l’installation est complètement réchauffée et le volume nominal du vase d’expansion.
B89: =Langage!B46 -> 25 Température de l'eau de remplissage
C90: Température effective de l'eau de remplissage de l'installation (supposée à 10°C dans les calculs).
B91: =Langage!B47 -> 26 Pression de remplissage
C92: Pression initiale dans le vase à régler par l’installateur au moment du remplissage de l’installation en fonction de la température effective de l'eau.
B93: =Langage!B48 -> 27 Perte de gaz admissible
C94: Fraction de perte de gaz pour laquelle on atteint la pression statique pour la température la plus basse de l’installation.
B96: Figures
B98: Graphique
C99: Le graphique indique la pression théorique au droit du vase d'expansion en fonction de la température (supposée uniforme) de l'eau de l'installation.
B100: Etiquette
C101: Etiquette destinée à être affichée à proximité du vase d'expansion.
C102: Elle indique ses caractéristiques principales et la plage de variation normale de la pression au droit du vase.

Sheet Richtlijnen
B2: RICHTLIJNEN VOOR HET GEBRUIK VAN HET REKENBLAD
B4: Weergave van de richtlijnen naast de berekeningstabel
B6: In de menutab Beeld (View), klik op Nieuw venster (New Window)
B7: U krijgt twee vensters van dit Excel-blad:
B8: 1. | C8: Een eerste waarin u de berekeningstabel kunt weergeven
B9: 2. | C9: Een tweede waarin u de richtlijnen kunt weergeven
B10: In de menutab Beeld (View), klik op Alle vensters (Arrange All)
B11: In de opties, kies Naast elkaar (Tiled)
B23: Invullen van het rekenblad
B25: Het invullen van het rekenblad verloopt in 3 stappen:
B26: 1. | C26: Invoering van de administratieve gegevens
B27: 2. | C27: Invoering van de algemene gegevens van de installatie
B28: 3. | C28: Keuze van het expansievat en berekening van de begindruk
B29: In het Excel-document dienen enkel de omkaderde velden door de gebruiker ingevuld te worden. Alle andere velden zijn beschermd en worden automatisch berekend en ingevuld.
B31: Gedetailleerde uitleg is te vinden in de "Dimensioneringsmethode 22"
B33: Invoergegevens voor de installatie
B35: =Langage!C22 -> 1 Maximale bedrijfstemperatuur
C36: Maximale ontwerptemperatuur waaraan de installatie of een deel van de installatie kan werken. Het strekt tot aanbeveling om voor deze temperatuur een waarde aan te houden die minstens gelijk is aan de maximale temperatuur waarop de warmtegenerator ingesteld kan worden.
B37: =Langage!C23 -> 2 Concentratie aan antivriesproduct (ethyleenglycol)
C38: Concentratie aan antivriesproduct in het installatiewater (aantal liter antivriesproduct per 100 liter mengsel).
B39: =Langage!C24 -> 3 Expansiecoëfficiënt (vulling op 10°C)
C40: Deze karakteriseert de volumetoename die het water ondergaat naargelang van de opwarming. Men dient te opteren voor de coëfficiënt die overeenstemt met de volumetoename die optreedt bij de aangekondigde maximale bedrijfstemperatuur (bv. 80 °C), ten opzichte van de temperatuur van het vulwater (10 °C).
B41: =Langage!C25 -> 4 Relatieve dampdruk
C42: Men dient te opteren voor de waarde die overeenstemt met de maximale bedrijfstemperatuur.
B43: =Langage!C26 -> 5 Waterinhoud van de installatie
C44: Het gaat hier ofwel om de berekende waterinhoud van de gehele installatie (leidingen en toestellen), ofwel om de waterinhoud die geschat werd op basis van richtwaarden.
B45: =Langage!C27 -> 6 Statische hoogte
C46: Hoogteverschil tussen het aansluitpunt van het expansievat en het hoogste punt van de installatie.
B47: =Langage!C28 -> 7 Hoogteverschil tussen het expansievat en het veiligheidsventiel
C48: Hoogteverschil tussen het aansluitpunt van het expansievat (X) en het aansluitpunt van het veiligheidsventiel (W); dit verschil is positief indien het punt X lager ligt dan het punt W en negatief in het tegenovergestelde geval.
B49: =Langage!C29 -> 8 Opvoerdruk van de pomp
C50: Druktoename die uitgeoefend wordt door de pomp. Enkel in te vullen indien de pomp tussen het expansievat en het veiligheidsventiel geplaatst is (anders is deze gelijk aan 0 bar).
B51: =Langage!C30 -> 9 Insteldruk van het veiligheidsventiel
C52: Door de fabrikant ingestelde druk waarop het veiligheidsventiel zich opent (meestal 3 bar voor residentiële installaties).
B54: Tussenberekening
B56: =Langage!C31 -> 10 Expansievolume van het water
C57: Volumetoename van het water bij opwarming. Het expansievolume wordt verkregen door de waterinhoud van de installatie te vermenigvuldigen met de expansiecoëfficiënt.
B58: =Langage!C32 -> 11 Minimaal reservewatervolume
C59: Minimale waterhoeveelheid die in het expansievat moet achterblijven wanneer de installatie afgekoeld is.
B60: =Langage!C33 -> 12 Maximaal toelaatbare druk
C61: Druk die niet overschreden mag worden in het expansievat om te vermijden dat het veiligheidsventiel van de warmtegenerator zich zou openen.
B62: =Langage!C34 -> 13 Statische druk
C63: Druk die door de waterkolom boven het expansievat uitgeoefend wordt en die overeenstemt met de statische hoogte.
B65: Keuze van het expansievat en van de begindruk
B67: =Langage!C35 -> 14 Minimale voordruk
C68: Minimale druk in het expansievat wanneer het nog geen water bevat.
B69: =Langage!C36 -> 15 Voordruk
C70: Druk in het expansievat wanneer het nog geen water bevat (ingesteld in de fabriek en te controleren door de installateur). Deze druk wordt gekozen door de installateur en moet minstens gelijk zijn aan de minimale voordruk.
B71: =Langage!C37 -> 16 Te compenseren gasverlies
C72: Gasverlies van het expansievat waartegen men zich wenst te beschermen tussen twee controles van het vat.
B73: =Langage!C38 -> 17 Minimaal volume van het vat
C74: Theoretisch minimaal volume (of capaciteit) van het expansievat.
B75: =Langage!C39 -> 18 Werkelijk volume van het vat
C76: Volume (of capaciteit) van het expansievat. Het wordt gekozen door de installateur en is ten minste gelijk aan het berekende minimale volume.
B77: =Langage!C40 -> 19 Minimale begindruk
C78: Minimale druk in het expansievat in afgekoelde toestand.
B79: =Langage!C41 -> 20 Maximale begindruk
C80: Maximale druk in het expansievat in afgekoelde toestand.
B81: =Langage!C42 -> 21 Begindruk
C82: Druk in het expansievat op het ogenblik dat de installatie gevuld wordt met water bij 10 °C. Deze druk moet begrepen zijn tussen de minimale en de maximale begindruk. De maximumwaarde wordt aanbevolen.
B83: =Langage!C43 -> 22 Reëel reservewatervolume
C84: Reservewatervolume dat in het vat achterblijft in afgekoelde toestand.
B85: =Langage!C44 -> 23 Einddruk
C86: Druk in het expansievat wanneer de installatie de maximale bedrijfstemperatuur bereikt.
B87: =Langage!C45 -> 24 Gebruiksrendement
C88: Verhouding tussen het watervolume dat in het vat aanwezig is wanneer de installatie volledig opgewarmd is en het nominale volume van het expansievat.
B89: =Langage!C46 -> 25 Temperatuur van he vulwater
C90: Effectieve temperatuur van het vulwater van de installatie (in de berekeningen gelijkgesteld aan 10°C).
B91: =Langage!C47 -> 26 Vuldruk
C92: Begindruk in het expansievat die door de installateur ingesteld moet worden op het moment dat de installatie gevuld wordt in functie van de effectieve watertemperatuur.
B93: =Langage!C48 -> 27 Toelaatbaar gasverlies
C94: Fractie gasverlies waarbij de statische druk bereikt wordt voor de laagste temperatuur van de installatie.
B96: Figuren
B98: Grafiek
C99: De grafiek toont de theoretische druk van het expansievat in functie van de (veronderstelde uniforme) temperatuur van het water in de installatie.
B100: Etiket
C101: Etiket dat op het expansievat dient te worden geplakt.
C102: Het geeft de voornaamste kenmerken aan en het normale bereik van de drukvariatie bij het vat.

Sheet Langage (hidden)
A1: Choix
B2: 1 | C2: 2
A3: ='Calcul - Berekening'!D2 -> Français | B3: Français | C3: Nederlands
A4: =IF(A$3=B$3,B4,C4) -> fr_be | B4: fr_be | C4: nl_be
A5: =IF(A$3=B$3,B5,C5) -> Tableau de calcul du vase d'expansion fermé à pression variable - NBN EN 12828:2013 | B5: Tableau de calcul du vase d'expansion fermé à pression variable - NBN EN 12828:2013 | C5: Rekenblad gesloten expansievat met variabele druk - NBN EN 12828:2013
A6: =IF(A$3=B$3,B6,C6) -> Références | B6: Références | C6: Referentie
A7: Données relatives à l'installation | B7: Données relatives à l'installation | C7: Invoergegevens voor de installatie
A8: Calculs intermédiaires | B8: Calculs intermédiaires | C8: Tussenberekening
A9: Choix du vase d'expansion | B9: Choix du vase d'expansion | C9: Keuze van het expansievat
A10: =IF(A$3=B$3,B10,C10) -> Pression de remplissage | B10: Pression de remplissage | C10: Vuldruk
A11: =IF(A$3=B$3,B11,C11) -> Perte de pression de gonflage | B11: Perte de pression de gonflage | C11: Voordrukverlies
A13: Nouveau calcul | B13: Nouveau calcul | C13: Nieuwe berekening
A15: =IF(A$3=B$3,B15,C15) -> Dossier | B15: Dossier | C15: Dossier
A16: Nom | B16: Nom | C16: Naam
A17: Adresse | B17: Adresse | C17: Adres
A18: Commune | B18: Commune | C18: Gemeente
A19: Commentaire | B19: Commentaire | C19: Commentaar
A20: Date | B20: Date | C20: Datum
A22: 1 Température maximale de service | B22: 1 Température maximale de service | C22: 1 Maximale bedrijfstemperatuur
A23: 2 Concentration en antigel (éthylène glycol) | B23: 2 Concentration en antigel (éthylène glycol) | C23: 2 Concentratie aan antivriesproduct (ethyleenglycol)
A24: 3 Coefficient d'expansion (remplissage à 10°C) | B24: 3 Coefficient d'expansion (remplissage à 10°C) | C24: 3 Expansiecoëfficiënt (vulling op 10°C)
A25: 4 Pression de vapeur saturante | B25: 4 Pression de vapeur saturante | C25: 4 Relatieve dampdruk
A26: 5 Contenance en eau de l'installation | B26: 5 Contenance en eau de l'installation | C26: 5 Waterinhoud van de installatie
A27: 6 Hauteur statique | B27: 6 Hauteur statique | C27: 6 Statische hoogte
A28: 7 Différence de hauteur entre le vase et la soupape de sécurité | B28: 7 Différence de hauteur entre le vase et la soupape de sécurité | C28: 7 Hoogteverschil tussen het expansievat en het veiligheidsventiel
A29: 8 Pression de refoulement de la pompe | B29: 8 Pression de refoulement de la pompe | C29: 8 Opvoerdruk van de pomp
A30: 9 Pression de tarage de la soupape de sécurité | B30: 9 Pression de tarage de la soupape de sécurité | C30: 9 Insteldruk van het veiligheidsventiel
A31: 10 Volume d'expansion de l'eau | B31: 10 Volume d'expansion de l'eau | C31: 10 Expansievolume van het water
A32: 11 Volume de réserve d'eau minimal | B32: 11 Volume de réserve d'eau minimal | C32: 11 Minimaal reservewatervolume
A33: 12 Pression maximale admissible | B33: 12 Pression maximale admissible | C33: 12 Maximaal toelaatbare druk
A34: 13 Pression statique | B34: 13 Pression statique | C34: 13 Statische druk
A35: 14 Pression de gonflage minimale | B35: 14 Pression de gonflage minimale | C35: 14 Minimale voordruk
A36: 15 Pression de gonflage | B36: 15 Pression de gonflage | C36: 15 Voordruk
A37: =IF(A$3=B$3,B37,C37) -> 16 Perte de gaz à compenser | B37: 16 Perte de gaz à compenser | C37: 16 Te compenseren gasverlies
A38: 17 Volume minimal du vase | B38: 17 Volume minimal du vase | C38: 17 Minimaal volume van het vat
A39: 18 Volume nominal du vase | B39: 18 Volume nominal du vase | C39: 18 Werkelijk volume van het vat
A40: 19 Pression initiale minimale | B40: 19 Pression initiale minimale | C40: 19 Minimale begindruk
A41: 20 Pression initiale maximale | B41: 20 Pression initiale maximale | C41: 20 Maximale begindruk
A42: 21 Pression initiale | B42: 21 Pression initiale | C42: 21 Begindruk
A43: 22 Volume de réserve d'eau réel | B43: 22 Volume de réserve d'eau réel | C43: 22 Reëel reservewatervolume
A44: 23 Pression finale | B44: 23 Pression finale | C44: 23 Einddruk
A45: 24 Rendement d'utilisation | B45: 24 Rendement d'utilisation | C45: 24 Gebruiksrendement
A46: 25 Température de l'eau de remplissage | B46: 25 Température de l'eau de remplissage | C46: 25 Temperatuur van he vulwater
A47: 26 Pression de remplissage | B47: 26 Pression de remplissage | C47: 26 Vuldruk
A48: 27 Perte de gaz admissible | B48: 27 Perte de gaz admissible | C48: 27 Toelaatbaar gasverlies
A50: =IF(A$3=B$3,B50,C50) -> Valeur recommandée | B50: Valeur recommandée | C50: Aanbevolen waarde
A51: =IF(A$3=B$3,B51,C51) -> 0% pour NBN EN 12828 | B51: 0% pour NBN EN 12828 | C51: 0% voor NBN EN 12828
A53: =IF(A$3=B$3,B53,C53) -> Température | B53: Température | C53: Temperatuur
A54: Volume du vase | B54: Volume du vase | C54: Volume van het vat
A55: Pression de gonflage | B55: Pression de gonflage | C55: Voordruk
A56: Pression initiale à 10°C | B56: Pression initiale à 10°C | C56: Begindruk bij 10°C
A57: Pression finale à | B57: Pression finale à | C57: Einddruk bij
A58: Fonctionnement normal | B58: Fonctionnement normal | C58: Normale werking
A59: Contrôle recommandé | B59: Contrôle recommandé | C59: Controle aanbevolen
A60: Intervention nécessaire | B60: Intervention nécessaire | C60: Interventie noodzakelijk

Sheet GA_cookies (hidden)
A1: Google Analytics ID
A2: Sum of openings
A3: Cookies accepted
